bitfinex-derivatives/quotes_ETHF0:USTF0_20260118
["timestamp","ask_amount","ask_price","bid_price","bid_amount"]
[1768710798795,0.9608329,3312.9,3311.9,1.49742987]
[1768710798992,0.9608329,3312.8,3311.9,1.49742987]
[1768710799193,0.97312787,3313.3,3311.9,1.49742987]
[1768710799393,0.96053084,3313.2,3311.9,1.49742987]
[1768710799590,0.96053084,3313.1,3311.9,1.49742987]
[1768710799900,0.96053084,3313.0,3311.9,1.49742987]
[1768710800099,0.9605308,3312.9,3311.9,1.49742987]
[1768710800305,0.9605308,3312.8,3311.9,1.49742987]
[1768710800507,0.97312787,3313.3,3311.9,1.49742987]
[1768710800698,0.96043711,3313.2,3311.9,1.49742987]
[1768710800905,0.96043711,3313.1,3312.1,0.97312787]
[1768710801101,0.97312787,3313.4,3312.1,0.97312787]
[1768710801302,0.96054674,3313.3,3312.1,0.97312787]
[1768710801503,0.96054674,3313.2,3312.1,0.97312787]
[1768710801698,0.96054674,3313.1,3312.1,0.97312787]
[1768710801906,0.97312787,3313.4,3312.1,1.49742987]
[1768710802106,0.96021493,3313.3,3312.1,1.49742987]
[1768710802306,0.96021493,3313.2,3312.1,1.49742987]
[1768710802610,0.97312787,3313.4,3312.1,1.49742987]
[1768710802809,0.95997418,3313.3,3312.1,1.49742987]
[1768710803010,0.95997418,3313.2,3312.2,0.49734917]
[1768710803199,0.97312787,3313.4,3312.2,0.49734917]
[1768710803399,0.95971788,3313.3,3312.2,0.49734917]
[1768710803703,0.97312787,3313.4,3312.2,0.49734917]
[1768710804008,0.97681228,3313.6,3312.3,1.47047704]
[1768710804309,0.95972577,3313.5,3312.3,1.47047704]
[1768710804501,0.95972577,3313.4,3312.3,1.47047704]
[1768710804695,0.97681228,3313.6,3312.3,0.49734917]
[1768710804900,0.95948194,3313.5,3312.3,0.49734917]
[1768710805104,0.95948194,3313.4,3312.3,0.49734917]
[1768710805307,0.97681228,3313.6,3312.3,0.49734917]
[1768710805604,0.95928072,3313.5,3312.3,0.49734917]
[1768710805804,0.95928072,3313.4,3312.3,0.49734917]
[1768710806104,0.97681228,3313.6,3312.3,0.49734917]
[1768710806305,0.9592798,3313.5,3312.3,0.49734917]
[1768710806605,0.9592798,3313.4,3312.3,0.49734917]
[1768710806905,0.97681228,3313.6,3312.3,0.49734917]
[1768710807105,0.95911466,3313.5,3312.3,0.49734917]
[1768710807306,0.95911466,3313.4,3312.3,0.49734917]
[1768710807496,0.97681228,3313.6,3312.3,0.49734917]
[1768710807697,0.9589801,3313.5,3312.3,0.49734917]
[1768710807899,0.9589801,3313.4,3312.3,0.49734917]
[1768710808098,0.97681228,3313.6,3312.3,0.49734917]
[1768710808309,0.95897919,3313.5,3312.3,0.49734917]
[1768710808503,0.95897919,3313.4,3312.3,0.49734917]
[1768710808705,0.97681228,3313.6,3312.3,0.49734917]
[1768710808902,0.95877993,3313.5,3312.3,0.49734917]
[1768710809106,0.95877993,3313.4,3312.3,0.49734917]
[1768710809304,0.97681228,3313.6,3312.3,0.49734917]
[1768710809506,0.95869267,3313.5,3312.3,0.49734917]
[1768710809712,0.95869267,3313.4,3312.3,0.49734917]
[1768710809905,0.97681228,3313.6,3312.3,0.49734917]
[1768710810105,0.958637,3313.5,3312.3,0.49734917]
[1768710810306,0.958637,3313.4,3312.3,0.49734917]
[1768710810606,0.97681228,3313.6,3312.3,0.49734917]
[1768710810904,0.95857932,3313.5,3312.3,0.49734917]
[1768710811104,0.95857932,3313.4,3312.3,0.49734917]
[1768710811304,0.97681228,3313.6,3312.3,0.49734917]
[1768710811512,0.95852365,3313.5,3312.3,0.49734917]
[1768710811711,0.95852365,3313.4,3312.3,0.49734917]
[1768710812012,0.97681228,3313.6,3312.3,0.49734917]
[1768710812211,0.95852372,3313.5,3312.3,0.49734917]
[1768710812510,0.95852372,3313.4,3312.3,0.49734917]
[1768710812811,0.97681228,3313.6,3312.3,0.49734917]
[1768710813012,0.95848576,3313.5,3312.3,0.49734917]
[1768710813311,0.95848576,3313.4,3312.3,0.49734917]
[1768710813512,0.97681228,3313.6,3312.3,0.49734917]
[1768710813713,0.95846277,3313.5,3312.3,0.49734917]
[1768710814008,0.95846277,3313.4,3312.3,0.49734917]
[1768710814211,0.97681228,3313.6,3312.3,0.49734917]
[1768710814410,0.95845496,3313.5,3312.3,0.49734917]
[1768710814612,0.95845496,3313.4,3312.3,0.49734917]
[1768710814814,0.97681228,3313.6,3312.3,0.49734917]
[1768710815012,0.95845498,3313.5,3312.3,0.49734917]
[1768710815307,0.95845498,3313.4,3312.3,0.49734917]
[1768710815508,0.97681228,3313.6,3312.3,0.49734917]
[1768710815709,0.95846847,3313.5,3312.3,0.49734917]
[1768710815911,0.95846847,3313.4,3312.3,0.49734917]
[1768710816110,0.97681228,3313.6,3312.3,0.49734917]
[1768710816309,0.95842559,3313.5,3312.3,0.49734917]
[1768710816515,0.95842559,3313.4,3312.3,0.49734917]
[1768710816715,0.97681228,3313.6,3312.3,0.49734917]
[1768710816916,0.95843421,3313.5,3312.3,0.49734917]
[1768710817116,0.97681228,3313.6,3312.3,0.49734917]
[1768710817711,0.97312787,3313.4,3312.0,1.27013787]
[1768710819017,0.97312787,3313.2,3312.0,0.29701]
[1768710821923,0.97312787,3313.2,3312.1,0.146]
[1768710826622,0.97312787,3313.4,3312.1,0.146]
[1768710826919,0.97312787,3313.4,3312.1,0.61981275]
[1768710827129,0.97312787,3313.4,3312.2,0.47381275]
[1768710827329,0.9595686,3313.3,3312.2,0.47381275]
[1768710827527,0.97312787,3313.4,3312.2,0.47381275]
[1768710827729,0.95956935,3313.3,3312.2,0.47381275]
[1768710827926,0.97312787,3313.4,3312.2,0.47381275]
[1768710828131,0.95956617,3313.3,3312.2,0.47381275]
[1768710828330,0.97312787,3313.4,3312.2,0.47381275]
[1768710828532,0.95974568,3313.3,3312.2,0.47381275]
[1768710828733,0.97312787,3313.4,3312.2,0.47381275]
[1768710828934,0.95968472,3313.3,3312.2,0.47381275]
[1768710829134,0.97312787,3313.4,3312.2,0.47381275]
[1768710829336,0.95968337,3313.3,3312.2,0.47381275]
[1768710829520,0.97312787,3313.4,3312.2,0.47381275]
[1768710829722,0.95991702,3313.3,3312.2,0.47381275]
[1768710829927,0.97312787,3313.4,3312.2,0.47381275]
[1768710830127,0.95991702,3313.3,3312.2,0.47381275]
[1768710830332,0.97312787,3313.4,3312.2,0.47381275]
[1768710830535,0.96029132,3313.3,3312.2,0.47381275]
[1768710830732,0.97312787,3313.4,3312.2,0.47381275]
[1768710830932,0.96027853,3313.3,3312.2,0.47381275]
[1768710831133,0.97312787,3313.4,3312.2,0.47381275]
[1768710831334,0.96035894,3313.3,3312.2,0.47381275]
[1768710831538,0.97312787,3313.4,3312.2,0.47381275]
[1768710831726,0.96022405,3313.3,3312.2,0.47381275]
[1768710831926,0.97312787,3313.4,3312.2,0.47381275]
[1768710832133,0.96022179,3313.3,3312.2,0.47381275]
[1768710832335,0.97312787,3313.4,3312.2,0.47381275]
[1768710832634,0.96031683,3313.3,3312.2,0.47381275]
[1768710832834,0.97312787,3313.4,3312.2,0.47381275]
[1768710833036,0.96031401,3313.3,3312.2,0.47381275]
[1768710833235,0.97312787,3313.4,3312.2,0.47381275]
[1768710833537,0.96031919,3313.3,3312.2,0.47381275]
[1768710833736,0.97312787,3313.4,3312.2,0.47381275]
[1768710833935,0.96031919,3313.3,3312.2,0.47381275]
[1768710834137,0.97312787,3313.4,3312.2,0.47381275]
[1768710834438,0.96031928,3313.3,3312.2,0.47381275]
[1768710834633,0.97312787,3313.4,3312.2,0.47381275]
[1768710834835,0.96031928,3313.3,3312.2,0.47381275]
[1768710835131,0.97312787,3313.4,3312.2,0.47381275]
[1768710835324,0.96032046,3313.3,3312.2,0.47381275]
[1768710835528,0.97312787,3313.4,3312.2,0.47381275]
[1768710835728,0.96032459,3313.3,3312.2,0.47381275]
[1768710836029,0.97312787,3313.4,3312.2,0.47381275]
[1768710836230,0.96039849,3313.3,3312.2,0.47381275]
[1768710836438,0.97681228,3313.6,3312.3,0.44452694]
[1768710836639,0.9604101,3313.5,3312.3,0.44452694]
[1768710836837,0.9604101,3313.4,3312.3,0.44452694]
[1768710837138,0.97681228,3313.6,3312.3,0.44452694]
[1768710837340,0.9604684,3313.5,3312.3,0.44452694]
[1768710837538,0.9604684,3313.4,3312.3,0.44452694]
[1768710837741,0.97681228,3313.6,3312.3,0.44452694]
[1768710837941,0.96059588,3313.5,3312.3,0.44452694]
[1768710838141,0.96059588,3313.4,3312.3,0.44452694]
[1768710838345,0.97681228,3313.6,3312.3,0.44452694]
[1768710838542,0.96056755,3313.5,3312.3,0.44452694]
[1768710838740,0.96056755,3313.4,3312.3,0.44452694]
[1768710838930,0.97681228,3313.6,3312.3,0.44452694]
[1768710839139,0.96056786,3313.5,3312.3,0.44452694]
[1768710839343,0.96056786,3313.4,3312.3,0.44452694]
[1768710839536,0.97681228,3313.6,3312.3,0.44452694]
[1768710839736,0.96051266,3313.5,3312.3,0.44452694]
[1768710839940,0.96051266,3313.4,3312.3,0.44452694]
[1768710840235,0.97681228,3313.6,3312.3,0.44452694]
[1768710840434,0.9605065,3313.5,3312.3,0.44452694]
[1768710840635,0.9605065,3313.4,3312.3,0.44452694]
[1768710840829,0.97681228,3313.6,3312.3,0.44452694]
[1768710841033,0.96051393,3313.5,3312.3,0.44452694]
[1768710841238,0.97681228,3313.6,3312.3,0.44452694]
[1768710841239,0.96051393,3313.4,3312.3,0.44452694]
[1768710841439,0.97681228,3313.6,3312.3,0.44452694]
[1768710841643,0.96046632,3313.5,3312.3,0.44452694]
[1768710841842,0.96046632,3313.4,3312.3,0.44452694]
[1768710842043,0.97681228,3313.6,3312.3,0.44452694]
[1768710842344,0.96043286,3313.5,3312.3,0.44452694]
[1768710842546,0.96043286,3313.4,3312.3,0.44452694]
[1768710842735,0.97681228,3313.6,3312.3,0.44452694]
[1768710842936,0.96043096,3313.5,3312.3,0.44452694]
[1768710843137,0.96043096,3313.4,3312.3,0.44452694]
[1768710843436,0.97681228,3313.6,3312.3,0.44452694]
[1768710843737,0.96050212,3313.5,3312.3,0.44452694]
[1768710844037,0.96050212,3313.4,3312.3,0.44452694]
[1768710844238,0.97312787,3313.4,3312.3,0.44452694]
[1768710852353,0.97312787,3313.4,3312.2,0.146]
[1768710853348,0.00368441,3313.6,3312.2,0.146]
[1768710853549,0.96050188,3313.5,3312.2,0.146]
[1768710853757,0.96050188,3313.4,3312.2,0.146]
[1768710854058,0.00368441,3313.6,3312.1,0.15101]
[1768710854258,0.96050281,3313.5,3312.1,0.15101]
[1768710854460,0.96050281,3313.4,3312.1,0.15101]
[1768710854659,0.00368441,3313.6,3312.1,0.15101]
[1768710854863,0.96051121,3313.5,3312.1,0.15101]
[1768710855161,0.00368441,3313.6,3312.1,0.15101]
[1768710855362,0.9576369,3313.5,3312.1,0.15101]
[1768710855564,0.9576369,3313.4,3312.1,0.15101]
[1768710855863,0.00368441,3313.6,3312.1,0.15101]
[1768710856062,0.95763526,3313.5,3312.1,0.15101]
[1768710856253,0.95763526,3313.4,3312.1,0.15101]
[1768710856452,0.00368441,3313.6,3312.1,0.15101]
[1768710856656,0.95765537,3313.5,3312.1,0.15101]
[1768710856858,0.95765537,3313.4,3312.1,0.15101]
[1768710857060,0.00368441,3313.6,3312.1,0.15101]
[1768710857262,0.95766109,3313.5,3312.1,0.15101]
[1768710857462,0.95766109,3313.4,3312.1,0.15101]
[1768710857760,0.00368441,3313.6,3312.1,0.15101]
[1768710857961,0.95767979,3313.5,3312.1,0.15101]
[1768710858160,0.95767979,3313.4,3312.1,0.15101]
[1768710858363,0.00368441,3313.6,3312.1,0.15101]
[1768710858655,0.95770774,3313.5,3312.1,0.15101]
[1768710858854,0.95770774,3313.4,3312.1,0.15101]
[1768710859065,0.00368441,3313.6,3312.1,0.15101]
[1768710859265,0.95771669,3313.5,3312.1,0.15101]
[1768710859466,0.95771669,3313.4,3312.1,0.15101]
[1768710859660,0.00368441,3313.6,3312.1,0.15101]
[1768710859859,0.95774333,3313.5,3312.1,0.15101]
[1768710860064,0.95774333,3313.4,3312.1,0.15101]
[1768710860264,0.48208492,3313.6,3312.1,0.15101]
[1768710860465,1.43628499,3313.5,3312.1,0.15101]
[1768710860666,0.95788448,3313.4,3312.1,0.15101]
[1768710860864,0.47840051,3313.5,3312.1,0.15101]
[1768710861061,0.95788293,3313.4,3312.1,0.15101]
[1768710861362,0.47840051,3313.5,3312.1,0.15101]
[1768710861661,0.95791864,3313.4,3312.1,0.15101]
[1768710861863,0.47840051,3313.5,3312.1,0.15101]
[1768710862060,0.95791946,3313.4,3312.1,0.15101]
[1768710862261,0.47840051,3313.5,3312.1,0.15101]
[1768710862460,0.95796236,3313.4,3312.1,0.15101]
[1768710862665,0.47840051,3313.5,3312.1,0.15101]
[1768710862969,0.95796236,3313.4,3312.1,0.15101]
[1768710863169,0.47840051,3313.5,3312.1,0.15101]
[1768710863369,0.95801425,3313.4,3312.1,0.15101]
[1768710863570,0.47840051,3313.5,3312.1,0.15101]
[1768710863769,0.95801341,3313.4,3312.1,0.15101]
[1768710863961,0.47840051,3313.5,3312.1,0.15101]
[1768710864161,0.95801341,3313.4,3312.1,0.15101]
[1768710864362,0.47840051,3313.5,3312.1,0.15101]
[1768710864569,0.95807945,3313.4,3312.1,0.15101]
[1768710864770,0.47840051,3313.5,3312.1,0.15101]
[1768710864971,0.95808017,3313.4,3312.1,0.15101]
[1768710865162,0.47840051,3313.5,3312.1,0.15101]
[1768710865362,0.95817138,3313.4,3312.1,0.15101]
[1768710865569,0.47840051,3313.5,3312.1,0.15101]
[1768710865768,0.95817141,3313.4,3312.1,0.15101]
[1768710866069,0.47840051,3313.5,3312.1,0.15101]
[1768710866261,0.95817631,3313.4,3312.1,0.15101]
[1768710866462,0.47840051,3313.5,3312.1,0.15101]
[1768710866766,0.95838758,3313.4,3312.1,0.15101]
[1768710866965,0.47840051,3313.5,3312.1,0.15101]
[1768710867158,0.95838642,3313.4,3312.1,0.15101]
[1768710867361,0.47840051,3313.5,3312.1,0.15101]
[1768710867567,0.95838745,3313.4,3312.1,0.15101]
[1768710867767,0.47840051,3313.5,3312.1,0.15101]
[1768710867968,0.95838588,3313.4,3312.1,0.15101]
[1768710868169,0.47840051,3313.5,3312.1,0.15101]
[1768710868370,0.95838701,3313.4,3312.1,0.15101]
[1768710868569,0.47840051,3313.5,3312.1,0.15101]
[1768710868772,0.95838696,3313.4,3312.1,0.15101]
[1768710868970,0.47840051,3313.5,3312.1,0.15101]
[1768710869171,0.95838679,3313.4,3312.1,0.15101]
[1768710869360,0.47840051,3313.5,3312.1,0.15101]
[1768710869563,0.95838896,3313.4,3312.1,0.15101]
[1768710869768,0.47840051,3313.5,3312.1,0.15101]
[1768710869968,0.95838825,3313.4,3312.1,0.15101]
[1768710870169,0.47840051,3313.5,3312.1,0.15101]
[1768710870370,0.95838857,3313.4,3312.1,0.15101]
[1768710870671,0.47840051,3313.5,3312.1,0.15101]
[1768710870870,0.95838894,3313.4,3312.1,0.15101]
[1768710871173,0.47840051,3313.5,3312.1,0.15101]
[1768710871470,0.95839114,3313.4,3312.1,0.15101]
[1768710871671,0.47840051,3313.5,3312.1,0.15101]
[1768710871870,0.95839205,3313.4,3312.1,0.15101]
[1768710872067,0.00368441,3313.6,3312.2,0.44166252]
[1768710872279,0.95839538,3313.5,3312.2,0.44166252]
[1768710872481,0.95839538,3313.4,3312.2,0.44166252]
[1768710872773,0.00368441,3313.6,3312.2,0.44166252]
[1768710872974,0.95839545,3313.5,3312.2,0.44166252]
[1768710873169,0.95839545,3313.4,3312.2,0.44166252]
[1768710873372,0.00368441,3313.6,3312.2,0.44166252]
[1768710873574,0.95839088,3313.5,3312.2,0.44166252]
[1768710873776,0.00368441,3313.6,3312.2,0.44166252]
[1768710873978,0.95842739,3313.5,3312.2,0.44166252]
[1768710874177,0.00368441,3313.6,3312.2,0.44166252]
[1768710874377,0.95828263,3313.5,3312.2,0.44166252]
[1768710874579,0.00368441,3313.6,3312.2,0.44166252]
[1768710874778,0.95828128,3313.5,3312.2,0.44166252]
[1768710874978,0.00368441,3313.6,3312.2,0.44166252]
[1768710875279,0.9582794,3313.5,3312.2,0.44166252]
[1768710875480,0.00368441,3313.6,3312.2,0.44166252]
[1768710875677,0.95822484,3313.5,3312.2,0.44166252]
[1768710875881,0.00368441,3313.6,3312.2,0.44166252]
[1768710876070,0.95822286,3313.5,3312.2,0.44166252]
[1768710876381,0.00368441,3313.6,3312.2,0.44166252]
[1768710876582,0.95817894,3313.5,3312.2,0.44166252]
[1768710876776,0.00368441,3313.6,3312.2,0.44166252]
[1768710876976,0.95818149,3313.5,3312.2,0.44166252]
[1768710877182,0.00368441,3313.6,3312.2,0.44166252]
[1768710877486,0.95815154,3313.5,3312.2,0.44166252]
[1768710877776,0.00368441,3313.6,3312.2,0.44166252]
[1768710877983,0.95814785,3313.5,3312.2,0.44166252]
[1768710878284,0.00368441,3313.6,3312.2,0.44166252]
[1768710878476,0.95811698,3313.5,3312.2,0.44166252]
[1768710878683,0.00368441,3313.6,3312.2,0.44166252]
[1768710878884,0.95811793,3313.5,3312.2,0.44166252]
[1768710879084,0.00368441,3313.6,3312.2,0.44166252]
[1768710879385,0.95809904,3313.5,3312.2,0.44166252]
[1768710879585,0.00368441,3313.6,3312.2,0.44166252]
[1768710879785,0.95809616,3313.5,3312.2,0.44166252]
[1768710879982,0.00368441,3313.6,3312.2,0.44166252]
[1768710880190,0.46666166,3314.3,3312.5,0.46030761]
[1768710880486,1.72138684,3314.2,3312.5,0.60630761]
[1768710880690,1.25472518,3314.1,3312.5,0.60630761]
[1768710880882,0.95805906,3314.0,3312.5,0.60630761]
[1768710881083,0.95805906,3313.9,3312.5,0.60630761]
[1768710883389,0.95805906,3313.9,3312.6,0.146]
[1768710887497,0.95805906,3313.9,3312.6,0.60630761]
[1768710889292,0.95805906,3313.9,3312.6,0.46030761]
[1768710892897,0.95805906,3313.9,3312.5,0.146]
[1768710895101,0.95805906,3313.9,3312.6,0.146]
[1768710900903,0.95805906,3313.9,3312.5,0.146]
[1768710902710,0.44710992,3313.8,3312.5,0.146]
[1768710902907,0.44710992,3313.6,3312.5,0.146]
[1768710903111,0.95708714,3313.5,3312.4,0.15099]
[1768710903311,0.44710992,3313.6,3312.0,0.146]
[1768710903511,0.95699874,3313.5,3312.0,0.146]
[1768710903808,0.95699874,3313.4,3312.0,0.146]
[1768710904004,0.95699874,3313.3,3312.0,0.146]
[1768710904207,0.44710992,3313.6,3312.0,0.146]
[1768710904508,0.95686625,3313.5,3312.0,0.146]
[1768710904703,0.95686625,3313.4,3312.0,0.146]
[1768710904899,0.44710992,3313.6,3312.0,0.146]
[1768710905212,0.95686625,3313.5,3312.0,0.146]
[1768710905412,0.95686625,3313.4,3312.0,0.146]
[1768710905611,0.44710992,3313.6,3312.0,0.146]
[1768710905908,0.95676199,3313.5,3312.0,0.146]
[1768710906102,0.95676199,3313.4,3312.0,0.146]
[1768710906298,0.44710992,3313.6,3312.0,0.146]
[1768710906502,0.95667376,3313.5,3312.0,0.146]
[1768710906708,0.95667376,3313.4,3312.0,0.146]
[1768710907011,0.44710992,3313.6,3312.1,0.146]
[1768710907211,0.95667432,3313.5,3312.1,0.146]
[1768710907411,0.95667432,3313.4,3312.1,0.146]
[1768710907614,0.44710992,3313.6,3312.1,0.146]
[1768710907804,0.9566,3313.5,3312.1,0.146]
[1768710908004,0.9566,3313.4,3312.1,0.146]
[1768710908205,0.44710992,3313.6,3312.1,0.146]
[1768710908511,0.95653329,3313.5,3312.1,0.146]
[1768710908708,0.95653329,3313.4,3312.1,0.146]
[1768710908914,0.44710992,3313.6,3312.1,0.146]
[1768710909217,0.95653329,3313.5,3312.1,0.146]
[1768710909510,0.95653329,3313.4,3312.1,0.146]
[1768710909712,0.44710992,3313.6,3312.1,0.146]
[1768710909912,0.95643781,3313.5,3312.1,0.146]
[1768710910114,0.95643781,3313.4,3312.1,0.146]
[1768710910314,0.44710992,3313.6,3312.1,0.146]
[1768710910517,0.95633283,3313.5,3312.1,0.146]
[1768710910720,0.95633283,3313.4,3312.1,0.146]
[1768710911014,0.44710992,3313.6,3312.1,0.146]
[1768710911314,0.95633383,3313.5,3312.1,0.146]
[1768710911615,0.95633383,3313.4,3312.1,0.146]
[1768710911815,1.41985838,3313.6,3312.1,0.146]
[1768710912005,0.95600023,3313.5,3312.1,0.146]
[1768710912205,0.95600023,3313.4,3312.1,0.146]
[1768710912418,1.41985838,3313.6,3312.1,0.146]
[1768710912615,0.95593525,3313.5,3312.1,0.146]
[1768710912818,0.95593525,3313.4,3312.0,0.146]
[1768710913015,1.41985838,3313.6,3312.0,0.146]
[1768710913213,0.9558482,3313.5,3312.0,0.146]
[1768710913412,0.9558482,3313.4,3312.0,0.146]
[1768710913615,1.41985838,3313.6,3312.0,0.146]
[1768710913912,0.95582497,3313.5,3312.0,0.146]
[1768710914210,0.95582497,3313.4,3312.0,0.146]
[1768710914412,1.41985838,3313.6,3312.0,0.59290224]
[1768710914616,0.95579693,3313.5,3312.3,0.44690224]
[1768710914816,0.00265485,3314.0,3312.3,0.44690224]
[1768710915014,0.95491551,3313.9,3312.3,0.44690224]
[1768710915215,0.95491551,3313.8,3312.3,0.44690224]
[1768710915418,0.95491551,3313.7,3312.4,0.97257883]
[1768710915617,0.95491551,3313.6,3312.4,1.41948107]
[1768710915917,0.97257883,3313.8,3312.4,1.41948107]
[1768710916110,0.95490851,3313.7,3312.4,1.41948107]
[1768710916312,0.95490851,3313.6,3312.4,1.41948107]
[1768710916611,0.97257883,3313.8,3312.4,1.41948107]
[1768710916817,0.95491446,3313.7,3312.4,1.41948107]
[1768710917010,0.95491446,3313.6,3312.4,1.41948107]
[1768710917211,0.97257883,3313.8,3312.4,1.41948107]
[1768710917410,0.95492137,3313.7,3312.4,1.41948107]
[1768710917705,0.95492137,3313.6,3312.4,1.41948107]
[1768710917909,0.97257883,3313.8,3312.4,1.41948107]
[1768710918217,0.9549221,3313.7,3312.4,1.41948107]
[1768710918419,0.9549221,3313.6,3312.4,1.41948107]
[1768710918616,0.97257883,3313.8,3312.4,1.41948107]
[1768710918912,0.9549441,3313.7,3312.4,1.41948107]
[1768710919111,0.9549441,3313.6,3312.4,1.41948107]
[1768710919316,0.97257883,3313.8,3312.4,1.41948107]
[1768710919616,0.95496641,3313.7,3312.4,1.41948107]
[1768710919817,0.95496641,3313.6,3312.4,1.41948107]
[1768710920018,0.97257883,3313.8,3312.4,1.41948107]
[1768710920216,0.95496695,3313.7,3312.4,1.41948107]
[1768710920419,0.95496695,3313.6,3312.4,1.41948107]
[1768710920619,0.97257883,3313.8,3312.4,1.41948107]
[1768710920824,0.95499204,3313.7,3312.4,1.41948107]
[1768710921027,0.95499204,3313.6,3312.4,1.41948107]
[1768710921324,0.97257883,3313.8,3312.4,1.41948107]
[1768710921528,0.95501866,3313.7,3312.4,1.41948107]
[1768710921717,0.95501866,3313.6,3312.4,1.41948107]
[1768710921917,0.97257883,3313.8,3312.4,1.41948107]
[1768710922121,0.95501962,3313.7,3312.4,1.41948107]
[1768710922326,0.95501962,3313.6,3312.4,1.41948107]
[1768710922526,0.97257883,3313.8,3312.4,1.41948107]
[1768710922721,0.95504993,3313.7,3312.4,1.41948107]
[1768710923021,0.95504993,3313.6,3312.4,1.41948107]
[1768710923222,0.97257883,3313.8,3312.4,1.41948107]
[1768710923423,0.9550806,3313.7,3312.4,1.41948107]
[1768710923719,0.9550806,3313.6,3312.4,1.41948107]
[1768710923920,0.97257883,3313.8,3312.4,1.41948107]
[1768710924121,0.95507963,3313.7,3312.4,1.41948107]
[1768710924323,0.95507963,3313.6,3312.4,1.41948107]
[1768710924521,0.97257883,3313.8,3312.4,1.41948107]
[1768710924718,0.95511509,3313.7,3312.4,1.41948107]
[1768710924924,0.95511509,3313.6,3312.4,1.41948107]
[1768710925120,0.95515428,3313.5,3312.4,0.44690224]
[1768710925421,0.4574478,3314.0,3312.4,0.44690224]
[1768710925625,0.97257883,3313.6,3312.4,0.44690224]
[1768710925826,0.95515352,3313.5,3312.4,0.44690224]
[1768710926029,0.97257883,3313.6,3312.4,0.44690224]
[1768710926225,0.95519798,3313.5,3312.4,0.44690224]
[1768710926525,0.97257883,3313.6,3312.4,0.44690224]
[1768710926729,0.95519798,3313.5,3312.4,0.44690224]
[1768710926916,0.97257883,3313.6,3312.4,0.44690224]
[1768710927121,0.95519752,3313.5,3312.4,0.44690224]
[1768710927321,0.97257883,3313.6,3312.4,0.44690224]
[1768710927525,0.95524592,3313.5,3312.4,0.44690224]
[1768710927719,0.97257883,3313.6,3312.4,0.44690224]
[1768710927921,0.95524592,3313.5,3312.4,0.44690224]
[1768710928119,0.97257883,3313.6,3312.4,0.44690224]
[1768710928330,0.95530086,3313.5,3312.4,0.44690224]
[1768710928524,0.97257883,3313.6,3312.4,0.44690224]
[1768710928724,0.95530086,3313.5,3312.4,0.44690224]
[1768710929024,0.97257883,3313.6,3312.4,0.44690224]
[1768710929224,0.95536338,3313.5,3312.4,0.44690224]
[1768710929431,0.97257883,3313.6,3312.4,0.44690224]
[1768710929632,0.95536338,3313.5,3312.4,0.44690224]
[1768710929832,0.97257883,3313.6,3312.4,0.44690224]
[1768710930033,0.95536338,3313.5,3312.4,0.44690224]
[1768710930224,0.97257883,3313.6,3312.4,0.44690224]
[1768710930424,0.95537419,3313.5,3312.4,0.44690224]
[1768710930626,0.97257883,3313.6,3312.4,0.44690224]
[1768710930925,0.95537419,3313.5,3312.4,0.44690224]
[1768710931232,0.97257883,3313.6,3312.4,0.44690224]
[1768710931431,0.95543935,3313.5,3312.4,0.44690224]
[1768710931622,0.97257883,3313.6,3312.4,0.44690224]
[1768710931823,0.95543932,3313.5,3312.4,0.44690224]
[1768710932026,0.97257883,3313.6,3312.4,0.44690224]
[1768710932230,0.95551562,3313.5,3312.4,0.44690224]
[1768710932434,0.97257883,3313.6,3312.4,0.44690224]
[1768710932734,0.95551562,3313.5,3312.4,0.44690224]
[1768710932918,0.97257883,3313.6,3312.4,0.44690224]
[1768710933124,0.95551562,3313.5,3312.4,0.44690224]
[1768710933323,0.97257883,3313.6,3312.4,0.44690224]
[1768710933530,0.95552114,3313.5,3312.4,0.44690224]
[1768710933726,0.97257883,3313.6,3312.4,0.44690224]
[1768710933927,0.95552114,3313.5,3312.4,0.44690224]
[1768710934124,0.97257883,3313.6,3312.4,0.44690224]
[1768710934330,0.95553119,3313.5,3312.4,0.44690224]
[1768710934533,0.97257883,3313.6,3312.4,0.44690224]
[1768710934830,0.95553119,3313.5,3312.4,0.44690224]
[1768710935031,0.97257883,3313.6,3312.4,0.44690224]
[1768710935234,0.95554489,3313.5,3312.4,0.44690224]
[1768710935531,0.97257883,3313.6,3312.4,0.44690224]
[1768710935732,0.95554552,3313.5,3312.4,0.44690224]
[1768710935928,0.97257883,3313.6,3312.4,0.44690224]
[1768710936128,0.95554552,3313.5,3312.4,0.44690224]
[1768710936333,0.97257883,3313.6,3312.4,0.44690224]
[1768710936535,0.95556321,3313.5,3312.4,0.44690224]
[1768710936735,0.97257883,3313.6,3312.4,0.44690224]
[1768710936928,0.95556704,3313.5,3312.4,0.44690224]
[1768710937127,0.97257883,3313.6,3312.4,0.44690224]
[1768710937327,0.97257883,3313.4,3312.1,1.11857883]
[1768710937528,0.97257883,3313.4,3312.1,1.56033792]
[1768710953050,0.97257883,3313.4,3312.1,0.58775909]
[1768710953253,0.97257883,3313.2,3312.1,0.58775909]
[1768710961152,0.97257883,3313.0,3312.1,0.58775909]
[1768710962956,0.97257883,3313.0,3312.1,0.146]
[1768710963261,0.97257883,3312.8,3311.7,0.41852327]
[1768710963756,0.97257883,3312.8,3311.4,0.146]
[1768710963953,0.97257883,3312.8,3311.4,0.56452327]
[1768710968358,0.97257883,3312.8,3311.5,0.146]
[1768710973361,0.97257883,3312.6,3311.5,0.146]
[1768710974259,0.97257883,3312.6,3311.4,0.56452327]
[1768710975462,0.97257883,3312.7,3311.4,0.56452327]
[1768710977261,0.45190604,3313.3,3311.4,0.56452327]
[1768710977465,0.15094,3313.7,3311.4,0.56452327]
[1768710977466,2.37536065,3313.2,3311.4,0.56452327]
[1768710977668,0.95026441,3313.1,3311.4,0.56452327]
[1768710977866,1.42509624,3313.2,3311.4,0.56452327]
[1768710978066,0.95026267,3313.1,3311.4,0.56452327]
[1768710978269,1.42509624,3313.2,3311.4,0.56452327]
[1768710978469,0.95026775,3313.1,3311.4,0.56452327]
[1768710978660,1.42509624,3313.2,3311.4,0.56452327]
[1768710978861,0.95026865,3313.1,3311.4,0.56452327]
[1768710979064,1.42509624,3313.2,3311.4,0.56452327]
[1768710979365,0.95029227,3313.1,3311.4,0.56452327]
[1768710979666,1.42509624,3313.2,3311.4,0.56452327]
[1768710979863,0.95028562,3313.1,3311.4,0.56452327]
[1768710980071,1.42509624,3313.2,3311.4,0.56452327]
[1768710980262,0.95032331,3313.1,3311.4,0.56452327]
[1768710980462,1.42509624,3313.2,3311.4,0.56452327]
[1768710980664,0.95031956,3313.1,3311.4,0.56452327]
[1768710980864,1.42509624,3313.2,3311.4,0.56452327]
[1768710981063,0.95031943,3313.1,3311.5,0.41852327]
[1768710981265,0.9731902,3313.2,3311.5,0.41852327]
[1768710981460,0.95036891,3313.1,3311.5,0.41852327]